bitfinex/quotes_ETHUSD_20250411
["timestamp","ask_amount","ask_price","bid_price","bid_amount"]
[1744402415463,6.39119,1564.7,1564.5,4.13674433]
[1744402415672,0.20692147,1564.6,1564.5,4.13674433]
[1744402415874,0.20692147,1564.6,1564.5,5.18964076]
[1744402416043,6.39119,1564.7,1564.5,5.18964076]
[1744402416244,0.20827277,1564.6,1564.5,4.13674433]
[1744402416543,6.39119,1564.7,1564.5,4.13674433]
[1744402416747,0.20818047,1564.6,1564.5,4.13674433]
[1744402417044,7.14369,1564.8,1564.5,4.13674433]
[1744402417263,0.20879625,1564.6,1564.5,4.13674433]
[1744402417571,7.14369,1564.8,1564.5,5.18964076]
[1744402417974,0.2094494,1564.7,1564.5,4.13674433]
[1744402418335,0.2094494,1564.7,1564.5,10.52855433]
[1744402418735,0.2094494,1564.7,1564.5,4.13674433]
[1744402419269,0.2094494,1564.7,1564.6,7.1895]
[1744402419427,0.2094494,1564.7,1564.6,10.24291466]
[1744402419630,7.1866,1565.2,1564.8,6.3904]
[1744402419830,13.57581,1565.2,1564.9,4.13674433]
[1744402420030,0.21142507,1565.1,1564.9,4.13674433]
[1744402420362,0.21142507,1565.1,1565.0,6.38977]
[1744402420960,6.38856,1565.3,1565.0,6.38977]
[1744402421161,0.21191883,1565.2,1565.1,4.13674433]
[1744402421961,6.38867,1565.3,1565.1,4.13674433]
[1744402422205,0.21191883,1565.2,1565.1,4.13674433]
[1744402422559,0.21191883,1565.2,1565.1,11.37629358]
[1744402422887,0.05,1565.4,1565.1,14.80154622]
[1744402423094,0.05,1565.4,1565.2,7.86907462]
[1744402423265,0.05,1565.4,1565.3,4.13674433]
[1744402424610,0.26783667,1565.4,1565.3,4.13674433]
[1744402424777,0.05,1565.4,1565.3,4.13674433]
[1744402425106,0.2715466,1565.4,1565.3,4.13674433]
[1744402425298,0.05,1565.4,1565.3,5.97619923]
[1744402425477,0.27170552,1565.4,1565.3,5.97619923]
[1744402425689,0.05,1565.4,1565.3,5.97619923]
[1744402425896,0.27170552,1565.4,1565.3,5.97619923]
[1744402426123,0.05,1565.4,1565.3,5.97619923]
[1744402426322,0.27170552,1565.4,1565.3,5.97619923]
[1744402426524,0.05,1565.4,1565.3,5.97619923]
[1744402426724,0.27170552,1565.4,1565.3,5.97619923]
[1744402426952,0.05,1565.4,1565.3,5.97619923]
[1744402427738,6.65979255,1565.4,1565.3,1.8394549]
[1744402428025,0.27165255,1565.4,1565.2,5.61689895]
[1744402428533,0.27165255,1565.4,1565.2,12.00584895]
[1744402429629,0.27165255,1565.4,1565.2,18.39467895]
[1744402429782,0.27165255,1565.4,1565.3,0.773]
[1744402431186,0.27165255,1565.4,1565.3,7.16155]
[1744402431385,0.27165255,1565.4,1565.3,2.6897279]
[1744402433203,6.66008255,1565.4,1565.2,4.13674433]
[1744402433824,13.04842255,1565.4,1565.2,4.13674433]
[1744402434336,6.65999255,1565.4,1565.2,4.13674433]
[1744402434649,13.04827255,1565.4,1565.2,4.13674433]
[1744402435007,6.38915,1565.2,1564.9,4.13674433]
[1744402435225,0.22017146,1565.1,1564.9,4.13674433]
[1744402435953,6.60961146,1565.1,1564.9,4.13674433]
[1744402437615,12.99913146,1565.1,1564.9,4.13674433]
[1744402438017,0.22017146,1565.1,1564.9,4.13674433]
[1744402438214,0.22017146,1565.1,1564.9,5.19584969]
[1744402438718,0.22017146,1565.1,1564.9,18.74264969]
[1744402439032,0.21856503,1565.0,1564.9,12.35259969]
[1744402439209,13.56506,1565.3,1564.9,8.21585536]
[1744402439409,0.21955261,1565.2,1565.1,4.13674433]
[1744402442578,6.60850261,1565.2,1565.1,4.13674433]
[1744402445272,7.1662,1565.1,1564.9,4.13674433]
[1744402445475,13.55578,1565.1,1564.9,4.13674433]
[1744402445652,13.55578,1565.1,1564.7,10.67919358]
[1744402445653,6.60285194,1565.0,1564.7,4.13674433]
[1744402445833,6.39075,1564.8,1564.5,4.95764433]
[1744402446036,0.98828051,1564.9,1564.5,4.13674433]
[1744402446342,6.6032735,1564.7,1564.5,4.13674433]
[1744402446542,6.39108,1564.7,1564.5,4.13674433]
[1744402446758,0.21142247,1564.6,1564.5,4.13674433]
[1744402447141,12.78228,1564.7,1564.5,4.13674433]
[1744402447954,0.21142247,1564.6,1564.5,4.13674433]
[1744402448356,12.78228,1564.7,1564.3,13.46881]
[1744402448553,0.2116071,1564.6,1564.5,4.13674433]
[1744402448861,12.78228,1564.7,1564.5,4.13674433]
[1744402449159,6.39182,1564.5,1564.3,4.13674433]
[1744402449364,7.16232,1564.4,1564.1,4.92204433]
[1744402449672,13.76499345,1564.4,1564.1,4.13674433]
[1744402450780,13.76490345,1564.4,1564.1,4.13674433]
[1744402451368,13.76491345,1564.4,1564.1,4.13674433]
[1744402452566,6.39271,1564.3,1564.0,3.7853]
[1744402452871,0.18411404,1564.2,1564.0,4.13674433]
[1744402453753,0.18411404,1564.2,1563.9,7.19895]
[1744402453754,12.97058404,1564.2,1563.9,4.13674433]
[1744402454067,0.18325003,1564.1,1563.9,4.13674433]
[1744402454458,13.75762676,1564.2,1563.9,4.13674433]
[1744402454667,0.18206239,1564.0,1563.9,4.13674433]
[1744402454858,6.39318,1564.2,1563.9,4.13674433]
[1744402455060,0.18427993,1564.0,1563.9,4.13674433]
[1744402455263,6.39318,1564.2,1563.9,4.13674433]
[1744402455474,0.18427993,1564.0,1563.9,4.13674433]
[1744402455651,6.39318,1564.2,1563.9,4.13674433]
[1744402455852,0.18427993,1564.0,1563.9,4.13674433]
[1744402456046,7.0621,1564.4,1564.0,0.8239]
[1744402456047,13.45446,1564.4,1564.0,0.8239]
[1744402456271,13.45446,1564.4,1564.1,4.13674433]
[1744402456775,13.45446,1564.4,1564.1,10.53013433]
[1744402458577,6.292,1564.4,1564.1,16.92352433]
[1744402460767,6.292,1564.4,1564.1,10.53013433]
[1744402461073,12.78388,1564.5,1564.1,10.53013433]
[1744402461273,14.21127907,1564.5,1564.1,10.53013433]
[1744402463674,0.7528,1564.6,1564.3,11.32454433]
[1744402463973,6.3913,1564.7,1564.5,4.13674433]
[1744402464169,6.3913,1564.7,1564.4,6.39211]
[1744402469675,0.169846,1564.6,1564.4,6.39211]
[1744402470078,6.3913,1564.7,1564.4,6.39211]
[1744402470280,0.16935183,1564.5,1564.3,4.93204433]
[1744402470571,12.78346,1564.6,1564.3,4.93204433]
[1744402470804,0.16894995,1564.4,1564.3,4.93204433]
[1744402470947,6.39156,1564.6,1564.3,4.93204433]
[1744402471149,0.16894995,1564.4,1564.3,4.93204433]
[1744402471349,6.39156,1564.6,1564.3,4.93204433]
[1744402471561,0.16894995,1564.4,1564.3,4.93204433]
[1744402471776,6.39156,1564.6,1564.3,6.70383076]
[1744402471947,0.16894995,1564.4,1564.3,13.09646076]
[1744402472148,6.39156,1564.6,1564.3,13.09646076]
[1744402472349,0.16894995,1564.4,1564.3,13.09646076]
[1744402472566,6.39156,1564.6,1564.3,13.09646076]
[1744402472769,0.16894995,1564.4,1564.3,13.09646076]
[1744402472960,6.39156,1564.6,1564.3,13.09646076]
[1744402473165,0.16894995,1564.4,1564.3,13.09646076]
[1744402473367,6.39156,1564.6,1564.3,13.09646076]
[1744402473986,0.17013358,1564.5,1564.3,13.09646076]
[1744402475278,12.78233,1564.7,1564.3,13.09646076]
[1744402475486,12.78233,1564.7,1564.3,11.32467433]
[1744402475487,0.1697454,1564.4,1564.3,11.32467433]
[1744402475649,12.78233,1564.7,1564.3,11.32467433]
[1744402475855,0.17073379,1564.6,1564.3,11.32467433]
[1744402476280,12.78233,1564.7,1564.3,11.32467433]
[1744402476487,0.17023963,1564.5,1564.3,11.32467433]
[1744402476673,12.78233,1564.7,1564.3,13.09643276]
[1744402476856,0.1697454,1564.4,1564.3,11.32467433]
[1744402477056,12.78233,1564.7,1564.3,11.32467433]
[1744402477260,0.1697454,1564.4,1564.3,11.32467433]
[1744402477460,12.78233,1564.7,1564.3,11.32467433]
[1744402477790,0.17032877,1564.4,1564.3,11.32467433]
[1744402477988,12.78233,1564.7,1564.3,13.09643276]
[1744402478170,0.17032877,1564.4,1564.3,11.32467433]
[1744402478377,12.78233,1564.7,1564.3,11.32467433]
[1744402478566,0.17032877,1564.4,1564.3,11.32467433]
[1744402478767,12.78233,1564.7,1564.3,11.32467433]
[1744402479262,0.17131715,1564.6,1564.3,11.32467433]
[1744402479484,0.17131715,1564.6,1564.3,18.83023884]
[1744402479684,12.78228,1564.7,1564.3,12.43760884]
[1744402479868,0.17071694,1564.5,1564.3,11.32467433]
[1744402480074,12.78228,1564.7,1564.3,11.32467433]
[1744402480291,0.17032877,1564.4,1564.3,11.32467433]
[1744402480464,12.78228,1564.7,1564.3,11.32467433]
[1744402480664,0.17032877,1564.4,1564.3,11.32467433]
[1744402480890,6.39142,1564.6,1564.3,6.70380576]
[1744402481097,0.17032877,1564.4,1564.3,4.13674433]
[1744402481297,13.5342,1564.6,1564.3,4.13674433]
[1744402481497,0.17032877,1564.4,1564.3,4.13674433]
[1744402481667,6.39182,1564.5,1564.3,4.13674433]
[1744402481982,0.17032877,1564.4,1564.3,4.13674433]
[1744402482995,13.53423,1564.6,1564.3,4.13674433]
[1744402483197,0.17032877,1564.4,1564.3,4.13674433]
[1744402483369,7.14242,1564.6,1564.3,4.13674433]
[1744402483571,0.17032877,1564.4,1564.3,4.13674433]
[1744402483770,13.53405,1564.6,1564.3,4.13674433]
[1744402483971,0.17032877,1564.4,1564.3,4.13674433]
[1744402484180,7.14242,1564.6,1564.3,4.13674433]
[1744402484398,0.17032877,1564.4,1564.3,4.13674433]
[1744402484600,14.136566,1564.6,1564.3,4.13674433]
[1744402484601,0.7788,1564.5,1564.3,4.13674433]
[1744402484774,0.17032877,1564.4,1564.3,4.13674433]
[1744402489978,0.17032877,1564.4,1564.2,4.13674433]
[1744402494276,0.17032877,1564.4,1564.2,10.52975433]
[1744402494488,0.17032877,1564.4,1564.2,12.22206376]
[1744402495380,0.17032877,1564.4,1564.2,5.82905376]
[1744402495580,0.17032877,1564.4,1564.2,4.13674433]
[1744402497008,7.19021,1564.3,1564.0,4.13674433]
[1744402497307,0.16877625,1564.2,1564.0,4.13674433]
[1744402498005,0.7974,1564.3,1564.0,4.13674433]
[1744402498182,0.7974,1564.3,1564.0,10.53060433]
[1744402498383,0.16877625,1564.2,1564.0,10.53060433]
[1744402500222,0.16877625,1564.2,1564.0,16.92434433]
[1744402500521,6.39105,1564.7,1564.0,16.92434433]
[1744402500522,0.826,1564.6,1564.2,6.39275]
[1744402500722,0.826,1564.6,1564.3,10.52936433]
[1744402501775,0.826,1564.6,1564.3,4.13674433]
[1744402503287,7.21744,1564.6,1564.3,4.13674433]
[1744402505117,6.39112,1564.7,1564.3,4.13674433]
[1744402505118,6.39112,1564.7,1564.5,4.13674433]
[1744402505329,6.38986,1565.0,1564.5,4.89244433]
[1744402505528,13.59419,1564.9,1564.5,7.1475]
[1744402505732,7.20381,1564.9,1564.6,4.13674433]
[1744402506588,6.39082,1564.8,1564.4,3.0]
[1744402506889,7.17412,1564.7,1564.4,3.0]
[1744402507088,7.17412,1564.7,1564.3,19.39450676]
[1744402507512,0.7831,1564.7,1564.3,19.39450676]
[1744402507713,7.17341,1564.9,1564.6,4.13674433]
[1744402509094,6.38991,1565.0,1564.6,10.52812433]
[1744402509290,13.45541,1565.1,1564.8,4.13674433]
[1744402509715,7.066,1565.1,1564.8,10.52733433]
[1744402509914,59.86686299,1565.2,1565.0,4.13674433]
[1744402510235,9.24986299,1565.2,1565.0,4.13674433]
[1744402510405,4.24986299,1565.2,1565.0,4.13674433]
[1744402511189,19.84345,1565.3,1565.0,4.13674433]
[1744402512490,13.4547,1565.3,1565.0,4.13674433]
[1744402513196,19.8435,1565.3,1565.0,4.13674433]
[1744402514426,12.77854,1565.2,1564.8,4.93494433]
[1744402514723,0.16474729,1565.1,1564.8,4.93494433]
[1744402514923,6.55413729,1565.1,1564.8,4.93494433]
[1744402515223,6.38984,1565.0,1564.8,4.13674433]
[1744402515422,13.72838729,1565.1,1564.8,4.13674433]
[1744402515631,0.16375958,1564.9,1564.8,4.13674433]
[1744402515918,0.16375958,1564.9,1564.8,5.26933776]
[1744402516125,7.17389,1565.1,1564.8,5.26933776]
[1744402516326,0.16375958,1564.9,1564.8,5.26933776]
[1744402516514,7.17389,1565.1,1564.8,5.26933776]
[1744402516691,0.16375958,1564.9,1564.8,4.13674433]
[1744402516889,13.56364,1565.1,1564.8,4.13674433]
[1744402517094,0.16425347,1565.0,1564.8,4.13674433]
[1744402517400,7.16508,1564.9,1564.6,4.13674433]
[1744402517599,6.39062,1564.8,1564.5,4.88964433]
[1744402517802,6.39113,1564.7,1564.3,18.5730775]
[1744402518126,13.57132,1564.7,1564.3,13.01408676]
[1744402518335,0.16227754,1564.6,1564.3,13.01408676]
[1744402518717,13.57132,1564.7,1564.3,13.01408676]
[1744402519027,0.1617834,1564.5,1564.3,13.01408676]
[1744402519247,13.57132,1564.7,1564.3,13.01408676]
[1744402519546,6.39141,1564.6,1564.3,4.13674433]
[1744402519839,6.55411285,1564.6,1564.3,4.13674433]
[1744402522036,0.16270285,1564.6,1564.3,10.52931433]
[1744402522540,7.17998,1564.7,1564.3,10.52931433]
[1744402522734,0.16220871,1564.5,1564.3,10.52931433]
[1744402522941,7.17998,1564.7,1564.3,12.29747676]
[1744402523237,0.16171451,1564.4,1564.3,12.29747676]
[1744402523434,7.17998,1564.7,1564.3,18.68997676]
[1744402523640,0.16171451,1564.4,1564.3,18.68997676]
[1744402523797,7.17998,1564.7,1564.3,18.68997676]
[1744402523997,0.16171451,1564.4,1564.3,18.68997676]
[1744402524230,7.17998,1564.7,1564.3,18.68997676]
[1744402524443,0.16171451,1564.4,1564.3,18.68997676]
[1744402524740,0.7889,1564.7,1564.4,6.39219]
[1744402528115,7.1799,1564.7,1564.3,12.29740676]
[1744402528316,13.57123,1564.7,1564.3,5.90490676]
[1744402528515,6.39141,1564.6,1564.3,5.90490676]
[1744402529023,13.5713,1564.7,1564.3,5.90490676]
[1744402529239,13.5713,1564.7,1564.3,12.29748676]
[1744402529754,0.16211889,1564.6,1564.3,12.29748676]
[1744402530156,13.5713,1564.7,1564.3,12.29748676]
[1744402530340,0.16162476,1564.5,1564.3,12.29748676]
[1744402530540,13.57106,1564.7,1564.4,1.22974868]
[1744402530871,13.57106,1564.7,1564.3,12.29748676]
[1744402531155,0.16211889,1564.6,1564.3,12.29748676]
[1744402531327,0.16211889,1564.6,1564.3,18.69001676]
[1744402531648,7.1799,1564.7,1564.3,18.69001676]
[1744402531812,0.16162476,1564.5,1564.3,18.69001676]
[1744402532008,13.57107,1564.7,1564.4,1.86900168]
[1744402532257,13.57107,1564.7,1564.3,10.52927433]
[1744402536055,6.39246,1564.4,1564.1,7.13674433]
[1744402536223,6.3927,1564.3,1564.1,4.13674433]
[1744402536419,6.3927,1564.3,1563.9,10.53088433]
[1744402536642,6.3927,1564.3,1564.1,4.13674433]
[1744402536836,6.3927,1564.3,1563.9,11.66593276]
[1744402537032,6.39329,1564.2,1563.9,1.13504843]
[1744402537246,6.39357,1564.1,1563.8,4.13674433]
[1744402537630,12.78729,1564.1,1563.8,4.13674433]
[1744402538030,6.39357,1564.1,1563.8,4.13674433]
[1744402538729,6.39409,1564.0,1563.7,4.13674433]
[1744402538961,7.16549,1564.0,1563.7,4.13674433]
[1744402539142,13.55963,1564.0,1563.7,4.13674433]
[1744402539870,13.55963,1564.0,1563.6,12.77357074]
[1744402540066,13.55963,1564.0,1563.7,4.13674433]
[1744402540770,6.39429,1563.9,1563.7,4.13674433]
[1744402542866,7.16549,1564.0,1563.7,4.13674433]
[1744402543070,0.7714,1564.0,1563.7,10.53173433]
[1744402543370,7.21361,1564.1,1563.9,4.13674433]
[1744402543547,8.574278,1564.1,1563.9,4.13674433]
[1744402544456,2.180768,1564.1,1563.9,4.13674433]
[1744402544668,0.15144261,1564.0,1563.9,10.53075433]
[1744402544869,13.46265,1564.4,1564.0,6.39354]
[1744402545072,0.15138373,1564.3,1564.1,4.13674433]
[1744402545585,0.15138373,1564.3,1564.1,4.94434433]
[1744402545911,0.15138373,1564.3,1564.1,11.33768433]
[1744402546251,0.15138373,1564.3,1564.1,13.11082676]
[1744402546960,0.15138373,1564.3,1564.2,6.39304]
[1744402548887,0.15138373,1564.3,1564.1,13.11078676]
[1744402549983,0.90278373,1564.3,1564.1,4.13674433]
[1744402550157,7.29560373,1564.3,1564.1,4.13674433]
[1744402550359,13.68842373,1564.3,1564.1,4.13674433]
[1744402550886,6.39304,1564.2,1564.1,4.13674433]
[1744402551091,6.54374443,1564.2,1563.9,4.95514433]
[1744402551581,12.93691443,1564.2,1563.9,4.95514433]
[1744402551887,6.39348,1564.1,1563.9,4.13674433]
[1744402552070,0.14962283,1564.0,1563.9,4.13674433]
[1744402555112,13.53696,1564.3,1563.9,10.53101433]
[1744402555283,0.15135578,1564.2,1563.9,10.53101433]
[1744402556579,6.54445578,1564.2,1563.9,10.53101433]
[1744402556903,7.91331436,1564.2,1563.9,10.53101433]
[1744402557097,14.30652436,1564.2,1563.9,4.13674433]
[1744402558005,6.3935,1564.1,1563.8,3.8184]
[1744402558309,0.13709658,1564.0,1563.7,17.68615433]
[1744402558509,0.13709658,1564.0,1563.7,11.29119433]
[1744402558673,0.13709658,1564.0,1563.7,13.58154367]
[1744402558879,0.13709658,1564.0,1563.7,19.97653367]
[1744402559110,0.13709658,1564.0,1563.7,13.58154367]
[1744402559409,0.13709658,1564.0,1563.7,19.97652367]
[1744402559901,0.13709658,1564.0,1563.7,19.97651367]
[1744402560211,0.13709658,1564.0,1563.7,3.04984934]
[1744402560393,6.39451,1563.9,1563.6,4.13674433]
[1744402560593,12.92502658,1564.0,1563.6,10.53213433]
[1744402560786,0.13449,1563.8,1563.6,16.92750433]
[1744402561114,0.13399507,1563.7,1563.6,18.74941681]
[1744402561301,12.78801,1564.0,1563.6,18.74941681]
[1744402561502,0.13498486,1563.9,1563.8,4.13674433]
[1744402566512,0.13498486,1563.9,1563.8,10.53141433]
[1744402566712,6.39309,1564.2,1563.8,16.92608433]
[1744402566713,13.59544,1564.2,1563.8,16.92608433]
[1744402566909,0.13448679,1564.1,1563.8,10.53141433]
[1744402567102,13.59544,1564.2,1563.8,18.69883076]
[1744402567305,0.13448679,1564.1,1563.8,18.69883076]
[1744402567500,13.59544,1564.2,1563.8,18.69883076]
[1744402567813,0.13448679,1564.1,1564.0,4.13674433]
[1744402568016,0.13448679,1564.1,1564.0,10.53060433]
[1744402568309,0.13448679,1564.1,1564.0,18.69238876]
[1744402568515,6.39266,1564.3,1564.0,12.29852876]
[1744402568727,0.13567216,1564.2,1564.0,10.53048433]
[1744402568882,0.13567216,1564.2,1564.0,16.92422433]
[1744402569281,0.13567216,1564.2,1563.9,0.47244206]
[1744402569282,6.39361,1564.1,1563.9,0.47244206]
[1744402569621,6.52854275,1564.0,1563.9,0.47244206]
[1744402569820,0.13468275,1564.0,1563.9,0.47244206]
[1744402570121,12.92276275,1564.0,1563.8,4.13674433]
[1744402570318,6.52854275,1564.0,1563.8,4.13674433]
[1744402571610,0.13468275,1564.0,1563.8,4.13674433]
[1744402571815,0.13468275,1564.0,1563.8,12.31371619]
[1744402572225,0.13468275,1564.0,1563.8,4.13674433]
[1744402573124,0.13468275,1564.0,1563.8,10.53138433]
[1744402573322,0.13468275,1564.0,1563.8,10.53129433]
[1744402573630,6.39276,1564.3,1564.0,6.39385]
[1744402573795,6.39276,1564.3,1564.1,4.13674433]
[1744402574293,12.67334,1564.4,1564.1,4.92904433]
[1744402574502,6.39304,1564.2,1564.1,4.92904433]
[1744402574720,6.53019082,1564.2,1564.1,4.13674433]
[1744402575526,12.92342082,1564.2,1563.9,11.28241433]
[1744402575829,12.92342082,1564.2,1563.9,13.05011576]
[1744402576130,12.92344082,1564.2,1563.9,13.05011576]
[1744402576825,12.92344082,1564.2,1563.9,13.51939325]
[1744402578726,6.39346,1564.1,1563.9,6.37372325]
[1744402578928,6.53173091,1564.0,1563.8,3.813]
[1744402579091,12.92592091,1564.0,1563.8,3.0]
[1744402579525,6.39427,1563.9,1563.8,3.0]
[1744402579725,6.39467,1563.8,1563.7,3.813]
[1744402579911,12.92637151,1563.8,1563.5,18.08871481]
[1744402580223,6.39565,1563.6,1563.4,0.7944]
[1744402580409,12.79128,1563.6,1563.4,0.7944]
[1744402580724,0.13475002,1563.5,1563.4,4.93114433]
[1744402581131,12.79128,1563.6,1563.4,4.93114433]
[1744402581428,0.13475002,1563.5,1563.4,4.93114433]
[1744402581804,12.79128,1563.6,1563.4,4.93114433]
[1744402582207,0.13475002,1563.5,1563.4,4.93114433]
[1744402582537,12.79128,1563.6,1563.4,4.93114433]
[1744402582734,6.3959,1563.5,1563.4,4.93114433]
[1744402582935,6.53041894,1563.5,1563.3,3.47143542]
[1744402583234,6.53041894,1563.5,1563.3,3.0]
[1744402584133,12.92655894,1563.5,1563.3,3.0]
[1744402584537,6.39633,1563.4,1563.2,0.811]
[1744402584837,0.13158659,1563.3,1563.2,0.811]
[1744402586004,6.52830659,1563.3,1563.0,14.34438433]
[1744402586206,6.52830659,1563.3,1563.0,15.75304496]
[1744402586445,6.39672,1563.3,1563.0,22.15087496]
[1744402586739,0.13123015,1563.2,1563.0,22.15087496]
[1744402586948,0.13123015,1563.2,1563.0,15.75304496]
[1744402588538,0.13123015,1563.2,1563.0,14.34438433]
[1744402589318,0.13123015,1563.2,1563.0,20.74221433]
[1744402589745,0.13123015,1563.2,1563.0,21.22704604]
[1744402590268,0.13123015,1563.2,1563.1,6.39754]
[1744402590429,0.13123015,1563.2,1563.1,10.23100499]
[1744402590760,12.67552,1563.6,1563.3,6.39648]
[1744402590983,12.67552,1563.6,1563.3,10.53322433]
[1744402591168,0.12568453,1563.5,1563.3,10.53322433]
[1744402591570,0.12568453,1563.5,1563.4,0.8054]
[1744402591869,0.12568453,1563.5,1563.4,7.20171]
[1744402592063,0.12568453,1563.5,1563.4,13.60066728]
[1744402592271,7.21241,1564.2,1563.9,6.39427]
[1744402592764,13.60573,1564.2,1563.9,6.39427]
[1744402593128,13.60573,1564.2,1563.8,10.53122433]
[1744402593129,0.8193,1564.2,1563.7,4.89474433]
[1744402593485,6.39422,1564.0,1563.7,3.0]
[1744402593639,12.78844,1564.0,1563.7,3.0]
[1744402593843,12.78844,1564.0,1563.7,5.06887243]
[1744402594259,6.39434,1563.9,1563.6,7.15658]
[1744402594466,12.78848,1564.0,1563.6,17.68870433]
[1744402594647,6.39422,1564.0,1563.7,6.39506]
[1744402595060,6.39353,1564.1,1563.8,4.13674433]
[1744402595365,6.39269,1564.3,1564.0,4.13674433]
[1744402595366,12.78554,1564.3,1564.0,4.13674433]
[1744402595743,6.39307,1564.2,1564.0,4.13674433]
[1744402596266,12.78626,1564.2,1564.0,4.13674433]
[1744402597978,6.39307,1564.2,1564.0,4.13674433]
[1744402600288,6.39272,1564.3,1564.0,4.13674433]
[1744402600289,6.39222,1564.4,1564.1,0.8064]
[1744402600488,19.06088,1564.5,1564.1,7.1997]
[1744402600787,12.78493,1564.4,1564.1,0.8064]
[1744402601028,6.3928,1564.3,1564.0,0.8064]
[1744402601290,6.39316,1564.2,1564.0,0.8064]
[1744402602302,12.78639,1564.2,1564.0,0.8064]
[1744402602596,12.78639,1564.2,1563.9,4.13674433]
[1744402603389,6.39316,1564.2,1563.9,10.53100433]
[1744402603695,6.39316,1564.2,1563.9,18.74684836]
[1744402604555,0.12547385,1564.1,1563.9,18.74683836]
[1744402604755,6.39316,1564.2,1563.9,12.35270836]
[1744402604993,0.12528911,1564.1,1563.9,12.35270836]
[1744402605367,6.39316,1564.2,1563.9,12.35270836]
[1744402605687,0.12479459,1564.0,1563.9,12.35270836]
[1744402605872,6.39316,1564.2,1563.9,12.35270836]
[1744402605873,6.39316,1564.2,1563.9,18.74681836]
[1744402606295,0.12556622,1564.1,1563.9,18.74681836]
[1744402606610,6.39316,1564.2,1563.9,18.74681836]
[1744402606812,0.12497934,1564.0,1563.9,18.74681836]
[1744402606996,6.39316,1564.2,1563.9,12.35269836]
[1744402607195,0.12534883,1564.0,1563.9,12.35269836]
[1744402607682,12.78661,1564.2,1563.9,12.35269836]
[1744402607882,0.12584332,1564.1,1563.9,10.53085433]
[1744402608083,14.140521,1564.2,1563.9,10.53085433]
[1744402608084,6.39316,1564.2,1563.9,10.53085433]
[1744402608402,0.12584332,1564.1,1563.9,10.53085433]
[1744402608913,0.12534883,1564.0,1563.9,10.53085433]
[1744402609113,6.39316,1564.2,1563.9,10.53085433]
[1744402609315,0.12584332,1564.1,1563.9,10.53085433]
[1744402609616,6.39316,1564.2,1563.9,12.35268836]
[1744402609777,0.12534883,1564.0,1563.9,10.53085433]
[1744402609978,6.39316,1564.2,1563.9,16.92501433]
[1744402610283,0.12584332,1564.1,1563.9,10.53085433]
[1744402610515,6.39316,1564.2,1563.9,10.53085433]
[1744402610716,0.12584332,1564.1,1563.9,10.53085433]
[1744402610889,0.12584332,1564.1,1563.9,11.71323035]
[1744402611215,0.12534883,1564.0,1563.9,11.71323035]
[1744402611380,6.39316,1564.2,1563.9,11.71323035]
[1744402611581,6.39316,1564.2,1563.9,10.53085433]
[1744402611781,0.12584332,1564.1,1563.9,10.53085433]
[1744402612214,6.39316,1564.2,1563.9,10.53085433]
[1744402612419,0.12534883,1564.0,1563.8,4.29290592]
[1744402612619,6.39397,1564.0,1563.8,3.0]
[1744402612784,0.12862937,1563.9,1563.8,3.0]
[1744402612983,0.12862937,1563.9,1563.8,11.52845746]
[1744402613225,0.12862937,1563.9,1563.8,12.28035746]
[1744402613386,6.39275,1564.3,1564.0,6.39379]
[1744402613723,12.78558,1564.3,1564.0,10.53053433]
[1744402614406,12.78558,1564.3,1564.0,4.13674433]
[1744402616020,13.54495,1564.2,1563.8,22.74761076]
[1744402616517,13.54495,1564.2,1563.8,23.2171758]
[1744402618024,6.39346,1564.1,1563.8,14.00086937]
[1744402618197,12.78723,1564.1,1563.8,7.13674433]
[1744402618401,6.39386,1564.0,1563.8,7.13674433]
[1744402619628,0.12841659,1563.9,1563.8,7.13674433]
[1744402621641,0.12841659,1563.9,1563.8,13.59535417]
[1744402621944,6.273,1564.2,1563.9,6.39391]
[1744402622343,6.273,1564.2,1563.9,12.78782]
[1744402624157,12.78559,1564.3,1563.9,12.78782]
[1744402626860,6.39315,1564.2,1563.9,6.39391]
[1744402627059,6.39315,1564.2,1563.9,12.78808]
[1744402627247,6.39315,1564.2,1563.9,15.17268508]
[1744402629561,12.78552,1564.3,1564.0,6.39384]
[1744402630062,12.78552,1564.3,1563.9,15.17268508]
[1744402630357,6.39274,1564.3,1564.0,6.39384]
[1744402630930,12.78554,1564.3,1563.9,15.17268508]
[1744402631133,6.39317,1564.2,1563.9,8.77851508]
[1744402632369,6.39317,1564.2,1563.9,15.17268508]
[1744402633369,6.39317,1564.2,1563.9,8.77851508]
[1744402633557,12.78635,1564.2,1563.9,8.77851508]
[1744402634681,0.12919277,1564.1,1563.9,8.77851508]
[1744402634980,12.78635,1564.2,1563.9,8.77851508]
[1744402635183,6.39403,1564.0,1563.8,3.0]
[1744402635381,0.12820379,1563.9,1563.8,3.0]
[1744402636755,6.39403,1564.0,1563.8,3.0]
[1744402637988,7.20946,1564.1,1563.8,9.39462]
[1744402638175,0.12869831,1564.0,1563.8,9.39462]
[1744402639494,0.12869831,1564.0,1563.8,15.78918]
[1744402639958,0.12869831,1564.0,1563.8,9.39456]
[1744402641074,6.52256831,1564.0,1563.7,12.79]
[1744402644508,0.12869831,1564.0,1563.8,5.41574433]
[1744402644658,13.58543,1564.3,1563.9,13.55154]
[1744402645065,6.52212558,1564.2,1563.9,7.15727]
[1744402645693,12.91540558,1564.2,1563.9,0.763]
[1744402645996,7.19315,1564.1,1563.7,10.15796]
[1744402646157,6.39388,1564.0,1563.7,10.15796]
[1744402646359,6.39388,1564.0,1563.7,16.55294]
[1744402646598,0.12751221,1563.9,1563.7,16.55294]
[1744402646799,0.12751221,1563.9,1563.8,10.59535593]
[1744402647171,0.7997,1564.1,1563.8,16.99002593]
[1744402647388,0.12751221,1563.9,1563.8,16.92608433]
[1744402647585,6.39319,1564.2,1563.9,6.39425]
[1744402648100,0.12850118,1564.1,1563.9,6.39425]
[1744402648288,6.39319,1564.2,1563.9,8.13577305]
[1744402648494,0.12800673,1564.0,1563.9,10.15095]
[1744402648803,0.7856,1564.5,1564.2,12.78586]
[1744402648962,12.66162,1564.6,1564.3,6.39259]
[1744402649162,0.17899298,1564.4,1564.3,6.39259]
[1744402649361,12.66162,1564.6,1564.3,6.39259]
[1744402649558,0.17899298,1564.4,1564.3,6.39259]
[1744402649777,12.66162,1564.6,1564.3,6.39259]
[1744402650003,12.66162,1564.6,1564.2,17.67925433]
[1744402650004,19.05316,1564.6,1564.2,17.67925433]
[1744402650467,0.14425228,1564.5,1564.2,17.67925433]
[1744402651112,0.14425228,1564.5,1564.2,17.67923433]
[1744402651290,0.14425228,1564.5,1564.2,11.28632433]